bitfinex-derivatives/quotes_ETHF0:USTF0_20260115
["timestamp","ask_amount","ask_price","bid_price","bid_amount"]
[1768505006259,0.008,3294.7,3292.1,0.15191]
[1768505006260,0.05443084,3294.2,3292.1,0.14419335]
[1768505006464,0.15184,3293.8,3292.2,0.009]
[1768505006963,0.15184,3293.8,3292.1,0.14419335]
[1768505007167,0.15450606,3293.8,3292.2,0.009]
[1768505007654,0.15184,3293.6,3292.1,0.00260442]
[1768505007857,0.15184,3293.6,3292.2,0.009]
[1768505007858,0.20625713,3293.6,3292.2,0.009]
[1768505008168,0.05444628,3293.5,3292.1,0.00260442]
[1768505008362,0.06244628,3293.4,3292.2,0.009]
[1768505008554,0.06244628,3293.4,3292.3,0.009]
[1768505009059,0.15184,3293.6,3292.3,0.009]
[1768505009060,0.008,3293.7,3292.3,0.009]
[1768505009362,0.04443289,3293.7,3292.3,0.009]
[1768505010160,0.15450606,3293.8,3292.3,0.009]
[1768505010961,0.00266606,3293.8,3292.3,0.009]
[1768505011264,0.00266606,3293.8,3292.3,0.15319335]
[1768505014564,0.00266606,3293.8,3292.3,0.30509335]
[1768505015065,0.00266606,3293.8,3292.4,0.14419335]
[1768505016277,0.00266606,3293.8,3292.5,0.009]
[1768505016571,0.00266606,3293.8,3292.6,0.009]
[1768505018767,5.039,3295.1,3292.6,0.009]
[1768505018768,0.1518,3294.6,3292.6,0.15319335]
[1768505019170,0.15177,3295.3,3293.0,0.14419335]
[1768505019378,0.99795307,3295.2,3293.2,0.14419335]
[1768505019675,0.15178,3295.0,3293.2,0.14419335]
[1768505019879,0.15548834,3295.0,3293.2,0.14419335]
[1768505021080,0.15548834,3295.0,3293.4,0.14419335]
[1768505021774,0.15178,3294.9,3293.4,0.14419335]
[1768505021973,0.15178,3294.9,3293.5,0.009]
[1768505023071,0.15178,3294.9,3293.5,0.15319335]
[1768505026665,0.00370834,3295.0,3293.5,0.15319335]
[1768505027270,0.15175,3295.6,3293.7,0.14419335]
[1768505028077,0.15176,3295.5,3293.7,0.14419335]
[1768505028380,0.15177,3295.3,3293.8,0.008]
[1768505028571,0.15177,3295.2,3293.7,0.14419335]
[1768505028772,0.15177,3295.2,3293.8,0.008]
[1768505029381,0.15177,3295.2,3293.8,0.15219335]
[1768505030081,0.15177,3295.2,3293.8,0.14419335]
[1768505030381,0.15177,3295.2,3293.9,0.008]
[1768505031185,0.15178,3294.9,3293.3,0.14419335]
[1768505031685,0.15178,3294.9,3293.4,0.008]
[1768505031982,0.15179,3294.7,3293.0,3.037]
[1768505032182,0.15179,3294.7,3293.1,0.008]
[1768505032382,0.1518,3294.6,3293.1,0.008]
[1768505032575,0.1518,3294.6,3292.8,0.1378887]
[1768505032576,0.15181,3294.3,3293.2,0.008]
[1768505033381,0.15181,3294.3,3292.8,0.1378887]
[1768505033583,0.15182,3294.2,3292.9,0.008]
[1768505033777,0.15182,3294.2,3293.0,0.008]
[1768505034690,0.15182,3294.0,3292.4,0.1378887]
[1768505034879,0.15182,3294.0,3292.5,0.008]
[1768505035188,0.15182,3294.0,3292.5,0.1458887]
[1768505035987,0.15182,3294.0,3292.1,0.00260442]
[1768505035988,0.04013781,3294.0,3292.6,0.008]
[1768505036186,0.04013781,3294.0,3292.7,0.008]
[1768505036386,0.04013781,3294.0,3292.8,0.008]
[1768505036884,0.04013781,3294.0,3292.1,0.14049312]
[1768505037084,0.15184,3293.6,3292.2,0.008]
[1768505037689,0.15185,3293.5,3292.3,0.008]
[1768505038878,0.02475741,3293.6,3292.3,0.008]
[1768505039481,0.15186,3293.3,3292.3,0.008]
[1768505040182,0.15186,3293.2,3292.3,0.008]
[1768505040379,0.15186,3293.2,3292.1,0.00260442]
[1768505040576,0.15188,3292.9,3292.1,0.00260442]
[1768505040778,0.15498046,3292.9,3292.1,0.00260442]
[1768505040977,0.15188,3292.8,3292.1,0.008]
[1768505041388,0.15188,3292.7,3291.2,3.038]
[1768505041588,0.15188,3292.7,3291.2,3.1758887]
[1768505041784,0.00310046,3292.9,3291.3,0.1458887]
[1768505041986,0.15187,3293.2,3292.0,0.1378887]
[1768505042186,0.15187,3293.2,3291.9,1.7706708]
[1768505042187,0.15187,3293.2,3292.2,0.1378887]
[1768505042788,0.008,3293.9,3292.2,0.1378887]
[1768505043094,0.15184,3293.6,3292.2,0.1378887]
[1768505044395,0.15184,3293.6,3292.3,0.1458887]
[1768505046894,0.15185,3293.5,3291.8,0.1378887]
[1768505047093,0.15185,3293.4,3291.9,0.008]
[1768505047790,0.15188,3292.8,3291.4,0.1378887]
[1768505047995,0.15188,3292.8,3291.5,0.008]
[1768505049491,0.15188,3292.8,3291.5,0.1458887]
[1768505052597,0.15188,3292.8,3291.6,0.008]
[1768505055297,0.15188,3292.8,3291.6,0.1458887]
[1768505056600,0.15189,3292.7,3291.6,0.1458887]
[1768505057395,0.15189,3292.5,3291.3,0.00286515]
[1768505057697,0.15189,3292.5,3291.4,0.008]
[1768505060000,0.1519,3292.4,3291.4,0.008]
[1768505062013,0.15191,3292.2,3291.3,0.00286515]
[1768505062216,0.15191,3292.2,3291.3,0.01086515]
[1768505063308,0.15192,3292.0,3290.4,5.7720507]
[1768505063516,0.15192,3292.0,3290.5,0.14972062]
[1768505063812,0.15194,3291.6,3290.6,0.008]
[1768505064012,0.15194,3291.5,3290.0,0.14172062]
[1768505064219,0.15195,3291.4,3290.1,0.008]
[1768505064526,0.15451451,3291.4,3290.1,0.0117552]
[1768505065310,0.15195,3291.3,3290.1,0.0117552]
[1768505066525,0.15195,3291.3,3290.1,0.15337245]
[1768505068616,0.15195,3291.3,3290.1,0.0117552]
[1768505069713,0.00256451,3291.4,3290.1,0.15337245]
[1768505071116,0.15194,3291.6,3290.3,0.14161725]
[1768505071521,0.1519,3292.3,3290.3,0.14161725]
[1768505071721,0.1519,3292.3,3290.8,0.14161725]
[1768505071919,0.1519,3292.3,3291.0,0.14161725]
[1768505072115,0.15419044,3292.3,3291.0,0.14161725]
[1768505073025,0.15191,3292.2,3291.1,0.008]
[1768505073709,0.15191,3292.2,3291.2,0.008]
[1768505079028,0.15191,3292.2,3291.3,0.008]
[1768505079422,0.15191,3292.1,3291.3,0.008]
[1768505079722,0.15192,3292.0,3291.3,0.008]
[1768505080317,0.00229044,3292.3,3291.3,0.008]
[1768505081233,0.15191,3292.1,3290.8,3.04]
[1768505081428,0.15193,3291.8,3290.9,0.008]
[1768505081625,0.01808873,3292.0,3290.9,0.008]
[1768505081824,0.15195,3291.4,3290.1,0.0037552]
[1768505082131,0.15195,3291.3,3290.2,0.008]
[1768505082629,0.15193,3291.9,3290.2,0.14961725]
[1768505082836,0.15193,3291.8,3290.2,0.14961725]
[1768505083332,0.15193,3291.7,3290.2,0.14961725]
[1768505085630,0.15194,3291.5,3290.2,0.14961725]
[1768505085832,0.15195,3291.3,3290.1,0.0037552]
[1768505086036,0.15195,3291.3,3290.2,0.008]
[1768505088335,0.15195,3291.2,3290.2,0.008]
[1768505089125,0.15193,3291.9,3290.2,0.008]
[1768505089333,0.99723055,3291.8,3290.2,0.008]
[1768505089538,0.15193,3291.8,3290.2,0.008]
[1768505089735,0.15193,3291.8,3290.2,0.14961725]
[1768505089937,0.15193,3291.8,3290.3,0.14161725]
[1768505091441,0.00229044,3292.3,3290.3,2.7330507]
[1768505091633,0.00769034,3292.0,3290.4,0.008]
[1768505091938,0.01029044,3292.3,3290.4,0.008]
[1768505091939,0.8537182,3291.9,3290.4,0.008]
[1768505092138,0.15195,3291.3,3290.4,0.008]
[1768505093733,0.15195,3291.3,3290.1,0.14903072]
[1768505093938,0.15195,3291.3,3290.2,0.008]
[1768505094741,0.15195,3291.3,3290.1,0.0037552]
[1768505094933,0.15195,3291.3,3290.3,0.008]
[1768505097245,0.15195,3291.2,3290.3,0.008]
[1768505097947,0.00600969,3291.4,3290.1,0.0037552]
[1768505098134,0.00600969,3291.4,3290.2,0.008]
[1768505098336,0.00600969,3291.4,3290.3,0.008]
[1768505098738,0.01024984,3291.8,3290.3,0.008]
[1768505098943,0.15195,3291.3,3290.3,0.008]
[1768505099143,0.15195,3291.3,3290.3,0.010594]
[1768505100142,0.15195,3291.2,3290.3,0.010594]
[1768505100346,0.15196,3291.1,3290.4,0.00511375]
[1768505101552,0.15196,3291.1,3290.3,0.002594]
[1768505101852,0.15196,3291.1,3290.4,0.008]
[1768505102242,0.15197,3290.9,3290.5,0.008]
[1768505103254,0.00229044,3292.3,3290.5,0.008]
[1768505103447,0.84448671,3292.2,3290.5,0.008]
[1768505103651,0.15194,3291.5,3290.3,0.002594]
[1768505103850,0.15194,3291.5,3290.4,3.048]
[1768505104156,0.15194,3291.5,3290.5,0.008]
[1768505104341,0.15194,3291.5,3290.3,0.002594]
[1768505104545,0.15194,3291.5,3290.4,3.048]
[1768505105146,0.15194,3291.5,3290.4,3.19327552]
[1768505105350,0.15194,3291.5,3290.5,0.14527552]
[1768505105549,0.15192,3291.9,3290.5,0.14527552]
[1768505107155,0.15192,3291.9,3290.6,3.048]
[1768505107756,0.15192,3291.9,3290.5,0.14527552]
[1768505108150,0.15192,3291.9,3290.6,3.048]
[1768505109762,0.00229044,3292.3,3290.4,3.04]
[1768505109963,0.15194,3291.6,3290.5,0.008]
[1768505110262,0.15194,3291.6,3290.6,0.008]
[1768505110854,0.15194,3291.5,3290.6,0.008]
[1768505112562,0.008,3292.2,3290.3,0.002594]
[1768505112865,0.84547663,3292.1,3290.4,0.008]
[1768505113067,0.15195,3291.4,3290.4,0.008]
[1768505113457,0.15195,3291.4,3290.4,0.15327552]
[1768505113656,0.15192,3292.0,3290.4,0.15327552]
[1768505115069,2.72823706,3294.2,3291.4,0.14527552]
[1768505115259,0.15186,3293.3,3291.6,0.14527552]
[1768505115462,0.00229044,3293.9,3291.7,0.39507119]
[1768505115663,0.00229044,3293.6,3291.8,0.39507119]
[1768505115960,0.82067181,3293.5,3291.9,0.40307119]
[1768505116164,0.82067181,3293.5,3291.6,0.14527552]
[1768505116165,0.00229044,3293.4,3292.0,0.39507119]
[1768505116371,0.00254474,3293.6,3292.1,0.40307119]
[1768505116668,0.15187,3293.1,3292.1,0.008]
[1768505116872,0.15416044,3293.1,3292.1,0.008]
[1768505117056,0.00229044,3292.8,3292.1,0.008]
[1768505117460,0.15187,3293.0,3291.6,0.14527552]
[1768505117680,0.15187,3293.0,3291.7,0.008]
[1768505117983,0.00229044,3292.9,3291.7,0.008]
[1768505118278,0.00229044,3292.8,3291.7,0.008]
[1768505118681,0.15187,3293.0,3291.7,0.15327552]
[1768505118981,0.00229044,3292.8,3291.8,0.008]
[1768505119177,0.00229044,3292.8,3291.7,0.14527552]
[1768505119373,0.15187,3292.9,3291.9,0.008]
[1768505119578,0.00229044,3292.7,3291.7,0.14527552]
[1768505119779,0.00229044,3292.7,3291.8,0.008]
[1768505119980,0.00229044,3292.6,3291.8,0.008]
[1768505120473,0.00229044,3292.4,3291.2,0.14527552]
[1768505120679,0.15189,3292.6,3291.3,0.008]
[1768505120984,0.15418044,3292.6,3291.3,0.14187357]
[1768505121184,0.00229044,3292.5,3291.3,0.14187357]
[1768505121480,0.15189,3292.6,3291.3,0.14187357]
[1768505121789,0.15189,3292.6,3291.3,0.13387357]
[1768505121969,0.15189,3292.6,3291.4,3.047]
[1768505122169,0.15189,3292.6,3291.4,0.13387357]
[1768505122381,0.15189,3292.6,3291.5,0.14187357]
[1768505125183,0.15189,3292.6,3291.5,0.13387357]
[1768505125379,0.00229044,3292.4,3291.5,0.13387357]
[1768505125579,0.00229044,3292.4,3291.6,0.008]
[1768505125881,0.00229044,3292.3,3291.6,0.008]
[1768505126080,0.00229044,3292.4,3291.6,0.008]
[1768505126482,0.00229044,3292.3,3291.6,0.008]
[1768505126682,0.00229044,3292.4,3291.6,0.008]
[1768505126877,0.00229044,3292.5,3291.6,0.008]
[1768505127275,0.15189,3292.6,3291.6,0.14228522]
[1768505127480,0.15418044,3292.6,3291.6,0.14228522]
[1768505127686,0.15186,3293.2,3291.6,0.14228522]
[1768505128190,0.15186,3293.2,3291.6,0.13428522]
[1768505128380,0.15186,3293.2,3291.8,0.13428522]
[1768505129490,0.15186,3293.2,3291.4,6.15194]
[1768505129491,0.15186,3293.2,3292.0,0.13428522]
[1768505130388,0.15186,3293.2,3292.1,3.047]
[1768505130776,0.15415044,3293.2,3292.1,3.047]
[1768505130978,0.15187,3293.0,3291.6,3.039]
[1768505131185,0.15188,3292.8,3291.6,3.039]
[1768505131394,0.15188,3292.7,3291.7,0.008]
[1768505131586,0.00229044,3292.4,3291.7,0.008]
[1768505131885,0.00229044,3292.5,3291.7,0.14228522]
[1768505132286,0.00229044,3292.4,3291.7,0.14228522]
[1768505132486,0.00229044,3292.6,3291.7,0.14228522]
[1768505132994,0.00229044,3292.5,3291.7,0.14228522]
[1768505133291,0.00229044,3292.5,3291.8,0.008]
[1768505133489,0.00229044,3292.4,3291.8,0.008]
[1768505133991,0.00229044,3292.3,3291.8,0.008]
[1768505134191,0.00229044,3292.4,3291.8,0.008]
[1768505134585,0.00229044,3292.3,3291.9,0.13428522]
[1768505134787,0.15186,3293.3,3291.9,0.13428522]
[1768505135492,0.15186,3293.3,3292.0,3.047]
[1768505136278,0.15186,3293.2,3292.1,3.047]
[1768505136478,0.15186,3293.2,3291.9,0.13428522]
[1768505136678,0.15187,3293.0,3291.4,0.13428522]
[1768505136880,0.00254474,3293.6,3291.5,0.13428522]
[1768505137195,0.15187,3293.0,3291.7,0.13428522]
[1768505137486,0.15185,3293.5,3291.9,0.13428522]
[1768505137686,0.15185,3293.5,3292.1,0.13428522]
[1768505138090,0.15185,3293.4,3292.1,0.13428522]
[1768505138782,0.15185,3293.4,3292.2,0.008]
[1768505138992,0.00254474,3293.6,3292.1,0.13428522]
[1768505138993,0.15186,3293.3,3292.3,0.008]
[1768505139184,0.15186,3293.2,3292.4,0.008]
[1768505139384,0.15186,3293.2,3292.5,0.008]
[1768505139582,0.15186,3293.2,3292.1,0.13428522]
[1768505139784,0.15186,3293.2,3292.2,0.008]
[1768505140188,0.15186,3293.2,3292.1,0.13428522]
[1768505140385,0.15187,3293.1,3292.2,0.008]
[1768505140586,0.15187,3293.1,3292.3,0.008]
[1768505142287,0.15187,3293.0,3292.3,0.008]
[1768505142492,0.15189,3292.7,3291.6,0.13428522]
[1768505142683,0.15189,3292.7,3291.7,0.008]
[1768505144893,0.15189,3292.7,3291.7,0.14228522]
[1768505145996,0.01054474,3293.6,3291.7,0.14228522]
[1768505146186,0.15186,3293.3,3291.7,0.14228522]
[1768505146392,0.81775276,3293.2,3291.7,0.14228522]
[1768505147494,0.15186,3293.3,3291.7,0.14228522]
[1768505147995,0.15186,3293.3,3291.8,0.13428522]
[1768505149098,0.15186,3293.3,3292.0,0.13428522]
[1768505151502,0.15186,3293.3,3292.1,0.008]
[1768505151900,0.15186,3293.3,3292.1,0.14752603]
[1768505153800,0.00254474,3293.6,3292.1,0.14752603]
[1768505156003,0.00254474,3293.6,3292.0,5.7720507]
[1768505156004,0.00254474,3293.6,3292.3,0.13952603]
[1768505160506,0.00254474,3293.6,3292.5,0.13952603]
[1768505161603,0.15183,3293.8,3292.5,0.13952603]
[1768505161604,0.15181,3294.4,3292.5,0.13952603]
[1768505161804,0.15182,3294.1,3292.5,0.13952603]
[1768505162006,0.15182,3294.1,3292.7,0.13952603]
[1768505162303,0.15182,3294.0,3292.7,0.13952603]
[1768505162492,0.15182,3294.0,3292.7,0.14250754]
[1768505162493,0.15423889,3294.0,3292.7,0.14250754]
[1768505162893,0.15183,3293.9,3292.7,0.14250754]
[1768505163105,0.15183,3293.9,3292.8,0.008]
[1768505164794,0.15183,3293.9,3292.9,0.008]
[1768505164995,0.15183,3293.8,3292.9,0.008]
[1768505165902,0.15185,3293.4,3292.7,0.00298151]
[1768505166199,0.15186,3293.2,3291.9,0.13952603]
[1768505166397,0.15187,3293.0,3291.9,0.13952603]
[1768505166598,0.15187,3293.0,3292.0,0.008]
[1768505167006,0.15187,3293.0,3292.0,0.01077049]
[1768505167600,0.008,3293.8,3292.0,0.15029652]
[1768505167892,0.15184,3293.6,3292.0,0.15029652]
[1768505169309,0.15184,3293.6,3292.4,0.13952603]
[1768505169609,0.15184,3293.6,3292.5,0.14752603]
[1768505170195,1.23034505,3292.7,3292.0,0.00277049]
[1768505170401,1.23034505,3292.4,3291.5,0.13952603]
[1768505170602,1.23034505,3292.4,3291.6,0.008]
[1768505171003,1.23034505,3292.4,3291.5,0.13952603]
[1768505171004,1.38224505,3292.4,3290.6,2.7330507]
[1768505171203,1.23034505,3292.1,3290.7,3.046]
[1768505171394,1.38224505,3292.4,3290.9,1.23034505]
[1768505171803,1.38224505,3292.4,3291.0,0.008]
[1768505172111,1.23034505,3293.0,3290.7,0.00379692]
[1768505172112,1.23034505,3291.8,3290.7,0.00379692]
[1768505172405,1.23034505,3291.8,3290.8,0.008]
[1768505173109,1.23034505,3291.8,3290.9,0.008]
[1768505173313,0.15192,3291.9,3290.9,0.008]
[1768505173501,0.15193,3291.8,3290.7,0.00379692]
[1768505173810,0.15193,3291.8,3290.8,0.008]
[1768505174012,0.15193,3291.8,3290.9,0.008]
[1768505174401,0.15194,3291.5,3290.7,0.00379692]
[1768505174605,0.15586348,3291.5,3290.8,0.008]
[1768505174905,0.15586348,3291.5,3289.9,0.13952603]
[1768505175112,0.15586348,3291.5,3290.0,0.14752603]
[1768505175812,0.15586348,3291.5,3290.0,0.15145582]
[1768505176510,0.15586348,3291.5,3290.1,0.008]
[1768505177018,0.15586348,3291.5,3290.1,0.14752603]
[1768505178220,0.15586348,3291.5,3290.2,0.008]
[1768505179300,0.15586348,3291.5,3290.1,0.13952603]
[1768505179498,0.15586348,3291.5,3290.2,0.008]
[1768505179714,0.15195,3291.4,3290.2,0.008]
[1768505180211,0.00392348,3291.5,3290.3,0.008]
[1768505180606,6.00392348,3291.5,3290.3,0.008]
[1768505181118,0.15197,3291.0,3290.3,0.008]
[1768505181613,0.15197,3291.0,3290.0,0.00392979]
[1768505181814,0.15197,3291.0,3290.1,0.008]
[1768505182815,0.00392348,3291.5,3290.1,0.008]
[1768505183010,0.00392348,3291.5,3290.1,0.14885923]
[1768505183418,0.15586348,3291.5,3290.1,0.14085923]
[1768505183622,0.15586348,3291.5,3290.2,0.008]
[1768505183916,0.15586348,3291.5,3290.1,0.14085923]
[1768505183917,0.15195,3291.4,3290.3,0.008]
[1768505185518,0.15195,3291.4,3290.1,0.14085923]
[1768505185815,0.15196,3291.1,3290.2,0.008]
[1768505186015,0.15196,3291.1,3290.0,0.00392979]
[1768505186311,0.15196,3291.0,3290.1,0.008]
[1768505186511,0.15197,3290.9,3290.1,0.008]
[1768505186814,0.15197,3290.9,3290.0,0.00392979]
[1768505187012,0.15197,3290.9,3290.1,0.008]
[1768505187208,0.008,3290.8,3289.5,0.008]
[1768505187410,0.15201,3290.1,3289.4,0.008]
[1768505187610,0.15201,3290.1,3288.7,0.14302673]
[1768505187804,0.15201,3290.1,3288.8,0.008]
[1768505188205,0.15201,3290.0,3288.8,0.00392572]
[1768505188413,0.15201,3290.0,3288.9,0.008]
[1768505188613,0.15201,3290.0,3288.8,0.00392572]
[1768505188813,0.15201,3290.0,3288.9,0.008]
[1768505189117,0.15202,3289.9,3289.0,0.008]
[1768505189616,0.008,3290.2,3289.0,0.008]
[1768505189818,1.77378377,3289.4,3287.2,0.14302673]
[1768505190022,0.008,3289.3,3287.3,0.15102673]
[1768505190316,0.15208,3288.4,3287.3,0.008]
[1768505190507,0.15208,3288.4,3287.0,0.14302673]
[1768505190709,0.00270892,3288.4,3287.2,0.15102673]
[1768505190916,0.00270892,3288.4,3287.3,0.008]
[1768505191115,0.00270892,3288.4,3287.0,0.00244854]
[1768505191116,0.15213,3287.5,3287.0,0.00244854]
[1768505191423,1.78178377,3287.7,3285.7,0.14302673]
[1768505191618,0.15215,3287.0,3285.7,0.14302673]
[1768505191913,40.808,3287.6,3285.8,0.008]
[1768505192118,40.808,3287.6,3285.8,0.15102673]
[1768505192312,0.008,3287.6,3286.4,0.14302673]
[1768505192512,1.77378377,3288.3,3286.4,0.14302673]
[1768505192716,0.1521,3288.1,3286.5,0.008]
[1768505192923,0.1521,3288.0,3286.5,0.008]
[1768505193108,0.1521,3288.0,3286.4,0.14302673]
[1768505193315,0.15216,3286.9,3285.8,0.01087285]
[1768505193526,0.008,3287.2,3285.8,0.00287285]
[1768505193722,0.15216,3286.7,3285.8,0.01087285]
[1768505193916,0.008,3287.2,3285.8,0.01087285]
[1768505194219,0.15212,3287.5,3285.8,0.15389958]
[1768505194714,0.008,3287.8,3285.8,0.14589958]
[1768505194924,0.008,3287.8,3285.9,0.15102673]
[1768505195115,0.16011,3287.8,3285.9,0.14302673]
[1768505195323,0.16011,3287.8,3286.0,0.008]
[1768505195518,0.16011,3287.8,3286.1,0.008]
[1768505195918,0.15212,3287.6,3285.9,0.14302673]
[1768505196119,0.15212,3287.5,3286.0,0.008]
[1768505196321,0.008,3287.4,3286.0,0.008]
[1768505196722,0.008,3287.4,3285.8,0.00287285]
[1768505196723,0.15214,3287.2,3285.8,0.00287285]
[1768505196926,0.15214,3287.1,3285.8,0.00287285]
[1768505197132,0.008,3287.0,3285.8,0.00287285]
[1768505197334,0.15216,3286.7,3284.9,0.14302673]
[1768505197531,0.15216,3286.7,3285.0,0.15102673]
[1768505197731,0.15216,3286.7,3285.1,0.15102673]
[1768505198422,0.15216,3286.7,3285.1,0.15493822]
[1768505199438,0.15217,3286.6,3285.1,0.15493822]
[1768505200317,0.15217,3286.6,3285.1,0.14693822]
[1768505200521,0.15217,3286.6,3285.2,0.008]
[1768505200726,0.15217,3286.5,3285.2,0.008]
[1768505200921,0.15218,3286.4,3285.2,0.008]
[1768505201121,0.15218,3286.4,3285.3,0.008]
[1768505201317,0.15218,3286.2,3285.4,0.008]
[1768505202232,0.11056542,3286.5,3285.1,0.01191149]
[1768505202535,0.11856542,3286.4,3285.1,0.00391149]
[1768505202927,0.11056542,3286.2,3285.1,0.01191149]
[1768505203623,0.1522,3285.8,3285.1,0.01191149]
[1768505203941,0.15222,3285.5,3284.1,0.14302673]
[1768505204132,0.15222,3285.5,3284.2,0.008]
[1768505204338,0.15222,3285.4,3284.1,0.14302673]
[1768505204630,0.15222,3285.4,3284.2,0.15102673]
[1768505204830,0.00375607,3285.8,3284.2,0.14605145]
[1768505205133,0.00375607,3285.8,3284.4,0.14302673]
[1768505205334,0.15221,3285.7,3284.5,0.008]
[1768505205932,0.15221,3285.7,3284.5,0.15102673]
[1768505207422,0.00375607,3285.8,3284.5,6.15102673]
[1768505207631,0.15218,3286.3,3284.5,0.15102673]
[1768505208727,0.15513281,3286.3,3284.5,0.15102673]
[1768505210737,0.00295281,3286.3,3284.8,1.77378377]
[1768505211041,0.008,3287.1,3284.9,0.14802353]
[1768505211231,0.1274213,3287.1,3285.0,3.052]
[1768505211426,0.15217,3286.5,3285.1,0.14002353]
[1768505211632,0.15214,3287.3,3285.6,0.14002353]
[1768505211935,0.15498539,3287.3,3285.8,0.14002353]
[1768505212133,0.00284539,3287.3,3285.8,0.14002353]
[1768505212335,0.1521,3288.0,3285.9,0.14002353]
[1768505213136,0.15211,3287.9,3286.0,0.14002353]
[1768505213337,0.15211,3287.8,3286.1,3.19202353]
[1768505213541,0.15211,3287.8,3286.2,0.14002353]
[1768505214850,0.00223469,3287.9,3286.2,0.14002353]
[1768505219643,0.00223469,3287.9,3286.3,0.15218]
[1768505219849,0.00223469,3287.9,3286.4,0.14002353]
[1768505220145,0.00223469,3287.9,3286.6,0.14002353]
[1768505220349,0.00223469,3287.9,3286.6,0.14336945]
[1768505221143,0.00223469,3287.9,3286.7,0.008]
[1768505221343,0.00223469,3287.9,3286.6,0.00334592]
[1768505221544,0.15213,3287.4,3286.6,0.00334592]
[1768505221746,0.15213,3287.4,3286.7,0.008]
[1768505222245,0.15213,3287.4,3286.6,0.00334592]
[1768505222246,0.15213,3287.3,3285.6,3.044]
[1768505222548,0.15213,3287.3,3284.4,2.01527472]
[1768505222549,0.11377951,3287.1,3285.7,0.008]
[1768505222749,0.15216,3286.7,3285.8,0.008]
[1768505222954,0.15217,3286.6,3285.8,0.008]
[1768505223347,0.15217,3286.6,3285.8,0.01046417]
[1768505224549,0.15217,3286.5,3285.8,0.008]
[1768505224853,0.15219,3286.1,3284.4,0.14002353]
[1768505225046,0.15219,3286.1,3284.5,0.008]
[1768505225245,0.15219,3286.1,3284.5,0.14802353]
[1768505225442,0.007,3286.5,3284.5,0.14802353]
[1768505225754,0.15216,3286.8,3284.5,0.14802353]
[1768505225755,0.11211847,3286.8,3284.6,0.14002353]
[1768505226050,0.81710878,3286.7,3284.6,0.14002353]
[1768505226250,0.15217,3286.5,3284.7,0.008]
[1768505226466,0.15218,3286.3,3284.8,0.008]
[1768505227671,0.10373943,3287.0,3284.8,0.14802353]
[1768505227860,0.96919623,3286.9,3284.8,0.14802353]
[1768505228169,0.11073943,3287.0,3284.8,0.14802353]
[1768505228170,0.15216,3286.7,3284.8,0.14802353]
[1768505228661,0.15216,3286.7,3284.9,0.008]
[1768505228857,0.15217,3286.6,3284.9,0.008]
[1768505229254,0.15218,3286.3,3285.0,0.008]
[1768505231870,0.15218,3286.3,3285.0,0.14802353]
[1768505232063,0.007,3286.6,3285.0,0.008]
[1768505232263,0.15218,3286.4,3285.0,0.008]
[1768505232968,0.15218,3286.3,3285.0,0.008]
[1768505234469,0.15215,3286.9,3285.0,0.14802353]
[1768505234665,0.15215,3286.9,3285.1,0.14002353]
[1768505235064,0.007,3287.4,3285.4,0.14002353]
[1768505235267,0.007,3287.4,3285.6,0.14002353]
[1768505235464,0.15212,3287.5,3285.6,0.14002353]
[1768505235878,0.00923469,3287.9,3285.9,0.14002353]
[1768505236067,0.00923469,3287.9,3286.0,0.14802353]
[1768505236766,0.00223469,3287.9,3286.1,0.14002353]
[1768505236969,0.00223469,3287.9,3286.3,0.14002353]
[1768505237162,0.00223469,3287.9,3286.2,0.15218]
[1768505237163,0.00223469,3287.9,3286.5,0.14002353]
[1768505238475,0.00223469,3287.9,3286.6,0.008]
[1768505239066,0.00223469,3287.9,3286.6,0.14802353]
[1768505239772,0.10135301,3289.1,3286.7,0.14002353]
[1768505239773,0.15206,3288.8,3286.7,0.14002353]
[1768505240863,0.15517833,3288.8,3286.8,0.13998059]
[1768505241058,0.15517833,3288.8,3286.9,0.13998059]
[1768505241265,0.15517833,3288.8,3287.1,0.13998059]
[1768505245884,0.15517833,3288.8,3287.2,0.007]
[1768505248766,0.15517833,3288.8,3287.2,0.14601772]
[1768505250274,0.00311833,3288.8,3287.2,0.14601772]
[1768505250468,0.00311833,3288.8,3287.3,0.13901772]
[1768505250873,0.00311833,3288.8,3287.4,0.13901772]
[1768505251074,0.15204,3289.3,3287.4,0.13901772]
[1768505251269,0.10946142,3289.7,3287.7,0.13901772]
[1768505251473,0.15203,3289.6,3287.9,0.13901772]
[1768505251679,0.15204,3289.3,3287.9,0.13901772]
[1768505252182,0.15448747,3289.3,3287.9,0.13901772]
[1768505254285,0.00244747,3289.3,3288.0,0.13901772]
[1768505254480,0.00244747,3289.3,3288.1,0.14601772]
[1768505254681,0.00244747,3289.3,3288.2,0.007]
[1768505255076,0.00244747,3289.3,3287.6,0.13901772]
[1768505255278,0.15206,3288.9,3287.6,0.13901772]
[1768505255479,0.15206,3288.9,3287.7,0.007]
[1768505257280,0.15207,3288.7,3287.1,0.13901772]
[1768505257486,0.15207,3288.7,3287.2,0.007]
[1768505259381,0.15207,3288.7,3287.2,0.14601772]
[1768505259581,0.15207,3288.7,3287.2,0.007]
[1768505260789,0.15207,3288.7,3287.2,0.14601772]
[1768505262091,0.15207,3288.7,3287.2,0.007]
[1768505262286,0.15207,3288.7,3287.3,0.007]
[1768505262490,0.15207,3288.7,3287.4,0.13901772]
[1768505262697,0.15448747,3289.3,3287.4,0.13901772]
[1768505262990,0.15448747,3289.3,3287.5,0.29113772]
[1768505263184,0.15448747,3289.3,3287.6,0.13901772]
[1768505263889,0.15448747,3289.3,3287.8,0.13901772]
[1768505263890,0.00244747,3289.3,3287.8,0.13901772]
[1768505264692,0.00244747,3289.3,3287.8,0.15211]
[1768505264893,0.00244747,3289.3,3287.9,0.13901772]
[1768505268295,0.00244747,3289.3,3288.1,0.13901772]